Workbook

Sheet part4
A1: N | B1: F | C1: D
A2: 1 | B2: 342 | C2: 25.28499985
A3: 1 | B3: 341 | C3: 25.18499947
A4: 1 | B4: 340 | C4: 25.10499954
A5: 1 | B5: 339 | C5: 25.05500031
A6: 1 | B6: 338 | C6: 25.03499985
A7: 1 | B7: 337 | C7: 24.93499947
A8: 1 | B8: 336 | C8: 24.73500061

Sheet part2
A1: N | B1: F | C1: D
A2: 1 | B2: 342 | C2: 25.28499985
A3: 1 | B3: 341 | C3: 25.18499947
A4: 1 | B4: 340 | C4: 25.10499954
A5: 1 | B5: 339 | C5: 25.05500031
A6: 1 | B6: 338 | C6: 25.03499985
A7: 1 | B7: 337 | C7: 24.93499947
A8: 1 | B8: 336 | C8: 24.73500061

Sheet part1
A1: n | B1: NF | C1: D
A2: 1 | B2: 347 | C2: 25.80999947
A3: 1 | B3: 346 | C3: 25.73999977
A4: 1 | B4: 345 | C4: 25.72999954
A5: 1 | B5: 344 | C5: 25.57999992
A6: 1 | B6: 343 | C6: 25.53499985

Sheet Accueil

Sheet Ex2
A1: N | B1: F | C1: D | D1: dx | E1: dy | F1: dxx | G1: dyy | H1: dxy | I1: dei | J1: dei*dei
A2: 1 | B2: 342 | C2: 25.28499985 | D2: "=B2-$B$9 | E2: "=C2-$C$9 | F2: "=D2*D2 | G2: "=E2*E2 | H2: "=D2*E2 | I2: "=C2-$B$12*B2-$C$12 | J2: "=I2*I2
A3: 1 | B3: 341 | C3: 25.18499947 | D3: =B3-$B$9 ->  | E3: =C3-$C$9 ->  | F3: =D3*D3 ->  | G3: =E3*E3 ->  | H3: =D3*E3 ->  | I3: =C3-$B$12*B3-$C$12 ->  | J3: =I3*I3 -> 
A4: 1 | B4: 340 | C4: 25.10499954
A5: 1 | B5: 339 | C5: 25.05500031
A6: 1 | B6: 338 | C6: 25.03499985
A7: 1 | B7: 337 | C7: 24.93499947
A8: 1 | B8: 336 | C8: 24.73500061
A9: "=SOMME(A2:A8) | B9: "=MOYENNE(B2:B8) | C9: "=MOYENNE(C2:C8) | F9: "=SOMME(F2:F8) | G9: "=SOMME(G2:G8) | H9: "=SOMME(H2:H8) | J9: "=SOMME(J2:J8)
B11: Slope | C11: Intercept | D11: ssd
B12: "=H9/F9 | C12: "=C9-B12*B9 | D12: "=(1/(A9-2))*J9/F9
B15: =(B12-Feuil1!B10)/RACINE(D12+Feuil1!D10)
C17: "=(Feuil2!B12-Feuil2!B10)/RACINE(D12+Feuil2!D10)

Sheet Ex1
A1: n | B1: NF | C1: D | D1: dx | E1: dy | F1: dx2 | G1: dy2 | H1: dxy | I1: dei | J1: dei*dei
A2: 1 | B2: 347 | C2: 25.80999947 | D2: =B2-$B$7 -> 2 | E2: =C2-$C$7 -> 0.1309997558 | F2: =D2*D2 -> 4 | G2: =E2*E2 -> 0.01716093603 | H2: =D2*E2 -> 0.2619995117 | I2: =C2-B2*$B$10-$C$10 -> -0.01100006104 | J2: =I2*I2 -> 0.0001210013429
A3: 1 | B3: 346 | C3: 25.73999977 | D3: =B3-$B$7 -> 1 | E3: =C3-$C$7 -> 0.06100006104 | F3: =D3*D3 -> 1 | G3: =E3*E3 -> 0.003721007447 | H3: =D3*E3 -> 0.06100006104 | I3: =C3-B3*$B$10-$C$10 -> -0.0099998474 | J3: =I3*I3 -> 9.999694802e-05
A4: 1 | B4: 345 | C4: 25.72999954 | D4: 0 | E4: 0.05099983214 | F4: 0 | G4: 0.002600982878 | H4: 0 | I4: 0.05099983214 | J4: 0.002600982878
A5: 1 | B5: 344 | C5: 25.57999992 | D5: -1 | E5: -0.09899978636 | F5: 1 | G5: 0.009800957699 | H5: 0.09899978636 | I5: -0.02799987792 | J5: 0.0007839931635
A6: 1 | B6: 343 | C6: 25.53499985 | D6: -2 | E6: -0.1439998627 | F6: 4 | G6: 0.02073596045 | H6: 0.2879997253 | I6: -0.00200004578 | J6: 4.000183122e-06
A7: =SUM(A2:A6) -> 5 | B7: =AVERAGE(B2:B6) -> 345 | C7: =AVERAGE(C2:C6) -> 25.67899971 | F7: =SUM(F2:F6) -> 10 | G7: =SUM(G2:G6) -> 0.0540198445 | H7: =SUM(H2:H6) -> 0.7099990844 | J7: =SUM(J2:J6) -> 0.003609974516
B9: Slope | C9: Intercept | D9: ssd
B10: =H7/F7 -> 0.07099990844 | C10: =C7-B10*B7 -> 1.184031298 | D10: =(1/(A7-2))*J7/F7 -> 0.0001203324839
